fUSD/lending_fUSD_20250616
["ID","MTS","AMOUNT","RATE_DAILY","PERIOD"]
[366185143,1750103465309,-703.94,0.00016375,2]
[366185144,1750103465319,-490.0,0.00016375,2]
[366185145,1750103465329,-490.0,0.00016375,2]
[366185146,1750103465339,-561.27,0.00016375,2]
[366185147,1750103465349,-686.4,0.00016375,2]
[366185148,1750103465359,-490.0,0.00016375,2]
[366185149,1750103465369,-490.0,0.00016375,2]
[366185150,1750103465378,-490.0,0.00016375,2]
[366185151,1750103465388,-490.0,0.00016375,2]
[366185152,1750103465398,-151.0,0.00016375,2]
[366185153,1750103465407,-759.82,0.00016375,2]
[366185154,1750103465417,-490.0,0.00016375,2]
[366185155,1750103465431,-490.0,0.00016375,2]
[366185156,1750103465441,-151.0,0.00016375,2]
[366185157,1750103465450,-490.0,0.00016375,2]
[366185158,1750103465460,-707.71,0.00016375,2]
[366185159,1750103465469,-613.07,0.00016375,2]
[366185160,1750103465479,-490.0,0.00016375,2]
[366185161,1750103465489,-151.0,0.00016375,2]
[366185162,1750103465499,-2019.56,0.00016375,2]
[366185163,1750103465508,-1159.14,0.00016375,2]
[366185164,1750103465518,-490.0,0.00016375,2]
[366185165,1750103465528,-490.0,0.00016375,2]
[366185166,1750103465538,-894.11,0.00016375,2]
[366185167,1750103465548,-568.44,0.00016375,2]
[366185168,1750103465557,-550.79,0.00016375,2]
[366185169,1750103465567,-1149.38,0.00016375,2]
[366185170,1750103465577,-857.33,0.00016375,2]
[366185171,1750103465586,-897.06,0.00016375,2]
[366185172,1750103465596,-673.48,0.00016375,2]
[366185173,1750103465605,-490.0,0.00016375,2]
[366185174,1750103465615,-685.33,0.00016375,2]
[366185175,1750103465625,-1788.95,0.00016375,2]
[366185176,1750103465635,-790.75,0.00016375,2]
[366185177,1750103465644,-490.0,0.00016375,2]
[366185178,1750103465653,-722.13,0.00016375,2]
[366185179,1750103465663,-490.0,0.00016375,2]
[366185180,1750103465673,-607.83109912,0.00016375,2]
[366185181,1750103465682,-884.72,0.00016375,2]
[366185182,1750103465692,-510.57,0.00016375,2]
[366185183,1750103465702,-912.78,0.00016375,2]
[366185184,1750103465711,-827.71,0.00016375,2]
[366185185,1750103465720,-530.44,0.00016375,2]
[366185186,1750103465730,-759.58,0.00016375,2]
[366185187,1750103465739,-490.0,0.00016375,2]
[366185188,1750103465748,-490.0,0.00016375,2]
[366185189,1750103465758,-490.0,0.00016375,2]
[366185190,1750103465767,-291.056215,0.00016375,2]
[366185191,1750103465777,-534.28,0.00016375,2]
[366185192,1750103465787,-291.05622,0.00016375,2]
[366185193,1750103465796,-490.0,0.00016375,2]
[366185194,1750103465807,-982.71,0.00016375,2]
[366185195,1750103465816,-490.0,0.00016375,2]
[366185196,1750103465826,-558.74,0.00016375,2]
[366185197,1750103465836,-490.0,0.00016375,2]
[366185198,1750103465845,-575.86,0.00016375,2]
[366185199,1750103465855,-490.0,0.00016375,2]
[366185200,1750103465865,-490.0,0.00016375,2]
[366185201,1750103465874,-1417.99,0.00016375,2]
[366185202,1750103465885,-490.0,0.00016375,2]
[366185203,1750103465895,-3739.17,0.00016375,2]
[366185204,1750103465905,-490.0,0.00016375,2]
[366185205,1750103465916,-490.0,0.00016375,2]
[366185206,1750103465925,-494.03,0.00016375,2]
[366185207,1750103465935,-490.0,0.00016375,2]
[366185208,1750103465946,-192.586721,0.00016375,2]
[366185209,1750103465956,-642.5,0.00016375,2]
[366185210,1750103466048,-588.12,0.00016375,2]
[366185211,1750103466093,-192.586723,0.00016375,2]
[366185212,1750103466104,-3619.26,0.00016375,2]
[366185213,1750103466115,-490.0,0.00016375,2]
[366185214,1750103466128,-490.0,0.00016375,2]
[366185215,1750103466138,-1538.24,0.00016375,2]
[366185216,1750103466149,-151.0,0.00016375,2]
[366185217,1750103466159,-490.0,0.00016375,2]
[366185218,1750103466169,-490.0,0.00016375,2]
[366185219,1750103466179,-2458.7,0.00016375,2]
[366185220,1750103466188,-490.0,0.00016375,2]
[366185221,1750103466198,-490.0,0.00016375,2]
[366185222,1750103466208,-168.682796,0.00016375,2]
[366185223,1750103466218,-9087.47,0.00016375,2]
[366185224,1750103466228,-241.106777,0.00016375,2]
[366185225,1750103466238,-168.682804,0.00016375,2]
[366185226,1750103466248,-490.0,0.00016375,2]
[366185227,1750103466257,-241.106768,0.00016375,2]
[366185228,1750103466268,-490.0,0.00016375,2]
[366185229,1750103466278,-490.0,0.00016375,2]
[366185230,1750103466287,-1264.99,0.00016375,2]
[366185231,1750103466298,-960.03,0.00016375,2]
[366185232,1750103466309,-490.0,0.00016375,2]
[366185233,1750103466319,-502.79,0.00016375,2]
[366185234,1750103466330,-977.94,0.00016375,2]
[366185235,1750103466339,-822.83,0.00016375,2]
[366185236,1750103466349,-1489.23,0.00016375,2]
[366185237,1750103466359,-490.0,0.00016375,2]
[366185238,1750103466369,-490.0,0.00016375,2]
[366185239,1750103466380,-531.85,0.00016375,2]
[366185240,1750103466390,-7763.71,0.00016375,2]
[366185241,1750103466400,-490.0,0.00016375,2]
[366185242,1750103466410,-490.0,0.00016375,2]
[366185243,1750103466424,-490.0,0.00016375,2]
[366185244,1750103466434,-588.43,0.00016375,2]
[366185245,1750103466444,-490.0,0.00016375,2]
[366185246,1750103466454,-1730.49,0.00016375,2]
[366185247,1750103466465,-671.6,0.00016375,2]
[366185248,1750103466475,-2111.48,0.00016375,2]
[366185249,1750103466485,-490.0,0.00016375,2]
[366185250,1750103466495,-3168.54,0.00016375,2]
[366185251,1750103466504,-490.0,0.00016375,2]
[366185252,1750103466514,-5398.99,0.00016375,2]
[366185253,1750103466523,-490.0,0.00016375,2]
[366185254,1750103466534,-1413.82,0.00016375,2]
[366185255,1750103466544,-490.0,0.00016375,2]
[366185256,1750103466554,-490.0,0.00016375,2]
[366185257,1750103466563,-606.59,0.00016375,2]
[366185258,1750103466572,-490.0,0.00016375,2]
[366185259,1750103466582,-490.0,0.00016375,2]
[366185260,1750103466592,-4088.18,0.00016375,2]
[366185261,1750103466601,-587.35,0.00016375,2]
[366185262,1750103466610,-810.08,0.00016375,2]
[366185263,1750103466621,-3530.19,0.00016375,2]
[366185264,1750103466631,-217.98,0.00016375,2]
[366185265,1750103466640,-490.0,0.00016375,2]
[366185266,1750103466650,-490.0,0.00016375,2]
[366185267,1750103466660,-1022.18,0.00016375,2]
[366185268,1750103466670,-1000.0,0.00016375,2]
[366185269,1750103466680,-490.0,0.00016375,2]
[366185270,1750103466689,-2733.97,0.00016375,2]
[366185271,1750103466699,-490.0,0.00016375,2]
[366185272,1750103466708,-490.0,0.00016375,2]
[366185273,1750103466717,-750.69,0.00016376,2]
[366185274,1750103466726,-151.0,0.00016376,2]
[366185275,1750103466736,-175.475534,0.00016376,2]
[366185276,1750103466746,-192.583811,0.00016376,2]
[366185277,1750103466755,-192.583811,0.00016376,2]
[366185278,1750103466765,-151.0,0.00016376,2]
[366185279,1750103466775,-198.455321,0.00016376,2]
[366185280,1750103466784,-198.455321,0.00016376,2]
[366185281,1750103466793,-151.0,0.00016376,2]
[366185282,1750103466803,-151.0,0.00016376,2]
[366185283,1750103466812,-189.071666,0.00016376,2]
[366185284,1750103466822,-300.0,0.00016378,2]
[366185285,1750103466831,-1019.342,0.00016381,2]
[366185286,1750103466840,-3333.0,0.00016381,2]
[366185287,1750103466850,-802.0,0.00016381,2]
[366185288,1750103466859,-637.0,0.00016381,2]
[366185289,1750103466868,-1160.0,0.00016381,2]
[366185290,1750103466877,-1277.0,0.00016381,2]
[366185291,1750103466888,-590.0,0.00016381,2]
[366185292,1750103466897,-558.0,0.00016381,2]
[366185293,1750103466907,-2003.0,0.00016381,2]
[366185294,1750103466916,-928.0,0.00016381,2]
[366185295,1750103466926,-1674.0,0.00016381,2]
[366185296,1750103466936,-4090.0,0.00016381,2]
[366185297,1750103466946,-155.0,0.00016381,2]
[366185298,1750103466955,-7112.0,0.00016381,2]
[366185299,1750103466966,-854.0,0.00016381,2]
[366185300,1750103466976,-976.0,0.00016381,2]
[366185301,1750103466988,-1476.20143227,0.00016383,2]
[366185302,1750103466998,-300.0,0.000164,5]
[366185303,1750103467008,-201.44022834,0.00016403,2]
[366185304,1750103467017,-1476.20143227,0.00016417,2]
[366185305,1750103467029,-151.0,0.0001642,2]
[366185306,1750103467039,-1000.0,0.00016421,2]
[366185307,1750103467049,-231.53506903,0.00016421,2]
[366185308,1750103467060,-1000.0,0.00016421,2]
[366185309,1750103467069,-1000.0,0.00016421,2]
[366185310,1750103467079,-1000.0,0.00016421,2]
[366185311,1750103467089,-1000.0,0.00016421,2]
[366185312,1750103467100,-1000.0,0.00016421,2]
[366185313,1750103467109,-333.57102936,0.00016424,2]
[366185314,1750103467120,-197.92496459,0.00016424,2]
[366185315,1750103467130,-53195.69640548,0.00016437,2]
[366185316,1750103467141,-151.0,0.00016437,2]
[366185317,1750103467150,-192.583811,0.00016437,2]
[366185318,1750103467160,-192.583809,0.00016437,2]
[366185319,1750103467169,-151.0,0.00016437,2]
[366185320,1750103467179,-198.455321,0.00016437,2]
[366185321,1750103467189,-198.455315,0.00016437,2]
[366185322,1750103467200,-219.781068,0.00016437,2]
[366185323,1750103467209,-500.0,0.00016438,2]
[366185324,1750103467220,-151.0,0.00016438,2]
[366185325,1750103467232,-262.0,0.00016438,2]
[366185326,1750103467243,-433.40640208,0.00016438,2]
[366185327,1750103467253,-500.0,0.00016438,2]
[366185328,1750103467263,-500.0,0.00016438,2]
[366185329,1750103467272,-500.0,0.00016438,2]
[366185330,1750103467283,-500.0,0.00016438,2]
[366185331,1750103467294,-500.0,0.00016438,2]
[366185332,1750103467303,-500.0,0.00016438,2]
[366185333,1750103467312,-500.0,0.00016438,2]
[366185334,1750103467323,-500.0,0.00016438,2]
[366185335,1750103467333,-500.0,0.00016438,2]
[366185336,1750103467344,-500.0,0.00016438,2]
[366185337,1750103467354,-500.0,0.00016438,2]
[366185338,1750103467364,-277.99382217,0.00016438,2]
[366185339,1750103467374,-500.0,0.00016438,2]
[366185340,1750103467383,-337.85737025,0.00016438,2]
[366185341,1750103467393,-500.0,0.00016438,2]
[366185342,1750103467403,-500.0,0.00016438,2]
[366185343,1750103467412,-490.0,0.00016438,2]
[366185344,1750103467426,-490.0,0.00016438,2]
[366185345,1750103467436,-490.0,0.00016438,2]
[366185346,1750103467446,-150.0,0.00016438,2]
[366185347,1750103467456,-179.38385656,0.00016439,2]
[366185348,1750103467466,-8082.13,0.0001644,2]
[366185349,1750103467476,-907.72,0.0001644,2]
[366185350,1750103467486,-864.06,0.0001644,2]
[366185351,1750103467496,-490.0,0.0001644,2]
[366185352,1750103467506,-1307.8,0.0001644,2]
[366185353,1750103467515,-702.19,0.0001644,2]
[366185354,1750103467525,-490.0,0.0001644,2]
[366185355,1750103467535,-490.0,0.0001644,2]
[366185356,1750103467545,-7553.88,0.0001644,2]
[366185357,1750103467555,-199.34781266,0.0001644,2]
[366185358,1750103467564,-490.0,0.0001644,2]
[366185359,1750103467574,-1304.04,0.0001644,2]
[366185360,1750103467585,-629.09,0.0001644,2]
[366185361,1750103467595,-326.2385215,0.0001644,2]
[366185362,1750103467604,-764.43,0.0001644,2]
[366185363,1750103467614,-1141.11,0.0001644,2]
[366185364,1750103467624,-742.77,0.0001644,2]
[366185365,1750103467633,-2982.39879637,0.0001644,2]
[366185366,1750103467644,-1025.64,0.0001644,2]
[366185367,1750103467653,-626.97,0.0001644,2]
[366185368,1750103467663,-490.0,0.0001644,2]
[366185369,1750103467673,-1476.20143227,0.00016452,2]
[366185370,1750103467683,-2000.0,0.00016472,2]
[366185371,1750103467693,-500.0,0.00016472,2]
[366185372,1750103467703,-200.0,0.00016472,2]
[366185373,1750103467713,-5987.13938258,0.00016475,2]
[366185374,1750103467723,-753.59,0.00016486,2]
[366185375,1750103467732,-657.65,0.00016486,2]
[366185376,1750103467743,-490.0,0.00016486,2]
[366185377,1750103467752,-490.0,0.00016486,2]
[366185378,1750103467762,-490.0,0.00016486,2]
[366185379,1750103467772,-490.0,0.00016486,2]
[366185380,1750103467781,-629.39,0.00016486,2]
[366185381,1750103467791,-967.43,0.00016486,2]
[366185382,1750103467800,-490.0,0.00016486,2]
[366185383,1750103467811,-490.0,0.00016486,2]
[366185384,1750103467822,-533.06887041,0.00016486,2]
[366185385,1750103467831,-2718.45,0.00016486,2]
[366185386,1750103467840,-542.6,0.00016486,2]
[366185387,1750103467850,-490.0,0.00016486,2]
[366185388,1750103467859,-1727.99,0.00016486,2]
[366185389,1750103467869,-2992.28,0.00016486,2]
[366185390,1750103467878,-490.0,0.00016486,2]
[366185391,1750103467887,-597.19,0.00016486,2]
[366185392,1750103467896,-490.0,0.00016486,2]
[366185393,1750103467906,-490.0,0.00016486,2]
[366185394,1750103467916,-869.57,0.00016486,2]
[366185395,1750103467926,-490.0,0.00016486,2]
[366185396,1750103467935,-490.0,0.00016486,2]
[366185397,1750103467945,-490.0,0.00016486,2]
[366185398,1750103467955,-618.54,0.00016486,2]
[366185399,1750103467964,-537.68,0.00016486,2]
[366185400,1750103467974,-618.494544,0.00016486,2]
[366185401,1750103467983,-626.11,0.00016486,2]
[366185402,1750103467992,-3802.52,0.00016486,2]
[366185403,1750103468002,-490.0,0.00016486,2]
[366185404,1750103468012,-1476.20143227,0.00016486,2]
[366185405,1750103468021,-672.91796395,0.00016499,2]
[366185406,1750103468030,-300.0,0.00016499,2]
[366185407,1750103468039,-300.0,0.00016499,2]
[366185408,1750103468049,-300.0,0.00016499,2]
[366185409,1750103468059,-300.0,0.00016499,2]
[366185410,1750103468068,-300.0,0.00016499,2]
[366185411,1750103468077,-300.0,0.00016499,2]
[366185412,1750103468087,-203441.9342102,0.000165,2]
[366185413,1750103468096,-245.58567,0.000165,2]
[366185414,1750103468106,-237.0,0.000165,2]
[366185415,1750103468115,-300.0,0.000165,6]
[366185416,1750103468125,-376.0,0.000165,2]
[366185417,1750103468135,-769.0,0.000165,2]
[366185418,1750103468145,-1476.20143227,0.00016521,2]
[366185419,1750103468154,-201.44022834,0.00016527,2]
[366185420,1750103468165,-150.096,0.00016531,2]
[366185421,1750103468174,-250.0,0.00016531,2]
[366185422,1750103468184,-186.105,0.00016531,2]
[366185423,1750103468194,-150.0,0.00016531,2]
[366185424,1750103468203,-150.354,0.00016531,2]
[366185425,1750103468213,-170.0,0.00016531,2]
[366185426,1750103468222,-150.0,0.00016531,2]
[366185427,1750103468231,-150.0,0.00016531,2]
[366185428,1750103468527,-150.0,0.00016531,2]
[366185429,1750103468541,-700.0,0.00016534,2]
[366185430,1750103468550,-300.0,0.00016539,2]
[366185431,1750103468560,-490.0,0.00016539,2]
[366185432,1750103468570,-490.0,0.00016539,2]
[366185433,1750103468579,-490.0,0.00016539,2]
[366185434,1750103468588,-490.0,0.00016539,2]
[366185435,1750103468597,-490.0,0.00016539,2]
[366185436,1750103468607,-692.5,0.00016539,2]
[366185437,1750103468616,-996.792621,0.00016539,2]
[366185438,1750103468626,-681.16,0.00016539,2]
[366185439,1750103468636,-300.0,0.00016539,2]
[366185440,1750103468646,-490.0,0.00016539,2]
[366185441,1750103468656,-604.44,0.00016539,2]
[366185442,1750103468666,-665.11,0.00016539,2]
[366185443,1750103468676,-609.07,0.00016539,2]
[366185444,1750103468686,-538.8,0.00016539,2]
[366185445,1750103468696,-2113.02,0.00016539,2]
[366185446,1750103468705,-490.0,0.00016539,2]
[366185447,1750103468715,-490.0,0.00016539,2]
[366185448,1750103468725,-490.0,0.00016539,2]
[366185449,1750103468735,-2962.76,0.00016539,2]
[366185450,1750103468745,-1249.64,0.00016539,2]
[366185451,1750103468756,-490.0,0.00016539,2]
[366185452,1750103468766,-490.0,0.00016539,2]
[366185453,1750103468776,-703.01,0.00016539,2]
[366185454,1750103468785,-490.0,0.00016539,2]
[366185455,1750103468795,-490.0,0.00016539,2]
[366185456,1750103468819,-1483.19,0.00016539,2]
[366185457,1750103468831,-1413.96,0.00016539,2]
[366185458,1750103468843,-1036.51,0.00016539,2]
[366185459,1750103468854,-597.4,0.00016539,2]
[366185460,1750103468865,-490.0,0.00016539,2]
[366185461,1750103468875,-1281.16,0.00016539,2]
[366185462,1750103468886,-3896.01,0.00016539,2]
[366185463,1750103468896,-300.0,0.00016539,2]
[366185464,1750103468906,-490.0,0.00016539,2]
[366185465,1750103468916,-490.0,0.00016539,2]
[366185466,1750103468927,-490.0,0.00016539,2]
[366185467,1750103468938,-730.97,0.00016539,2]
[366185468,1750103468949,-425.57146061,0.00016539,2]
[366185469,1750103468959,-1203.44,0.00016539,2]
[366185470,1750103468970,-490.0,0.00016539,2]
[366185471,1750103468980,-1225.71,0.00016539,2]
[366185472,1750103468990,-576.8383813,0.00016539,2]
[366185473,1750103469001,-641.57,0.00016539,2]
[366185474,1750103469011,-1380.21,0.00016539,2]
[366185475,1750103469022,-490.0,0.00016539,2]
[366185476,1750103469032,-490.0,0.00016539,2]
[366185477,1750103469042,-560.69,0.00016539,2]
[366185478,1750103469052,-1962.5,0.00016539,2]
[366185479,1750103469064,-1756.94,0.00016539,2]
[366185480,1750103469074,-490.0,0.00016539,2]
[366185481,1750103469084,-1274.07,0.00016539,2]
[366185482,1750103469095,-490.0,0.00016539,2]
[366185483,1750103469105,-1023.46,0.00016539,2]
[366185484,1750103469115,-490.0,0.0001654,2]
[366185485,1750103469125,-490.0,0.0001654,2]
[366185486,1750103469136,-490.0,0.0001654,2]
[366185487,1750103469146,-490.0,0.0001654,2]
[366185488,1750103469156,-490.0,0.0001654,2]
[366185489,1750103469166,-490.0,0.0001654,2]
[366185490,1750103469176,-343.54329629,0.0001654,2]
[366185491,1750103469186,-490.0,0.0001654,2]
[366185492,1750103469197,-490.0,0.0001654,2]
[366185493,1750103469208,-490.0,0.0001654,2]
[366185494,1750103469218,-490.0,0.0001654,2]
[366185495,1750103469228,-490.0,0.0001654,2]
[366185496,1750103469245,-490.0,0.0001654,2]
[366185497,1750103469256,-490.0,0.0001654,2]
[366185498,1750103469266,-490.0,0.0001654,2]
[366185499,1750103469277,-490.0,0.0001654,2]
[366185500,1750103469288,-490.0,0.0001654,2]
[366185501,1750103469299,-828.68,0.0001654,2]
[366185502,1750103469311,-490.0,0.0001654,2]
[366185503,1750103469322,-490.0,0.0001654,2]
[366185504,1750103469333,-518.41,0.0001654,2]
[366185505,1750103469343,-879.07,0.0001654,2]
[366185506,1750103469355,-680.92,0.0001654,2]
[366185507,1750103469367,-490.0,0.0001654,2]
[366185508,1750103469378,-490.0,0.0001654,2]
[366185509,1750103469388,-490.0,0.0001654,2]
[366185510,1750103469399,-922.52,0.0001654,2]
[366185511,1750103469410,-490.0,0.0001654,2]
[366185512,1750103469629,-490.0,0.0001654,2]
[366185513,1750103469640,-490.0,0.0001654,2]
[366185514,1750103469651,-562.24,0.0001654,2]
[366185515,1750103469662,-679.76,0.0001654,2]
[366185516,1750103469673,-634.47785723,0.0001654,2]
[366185517,1750103469683,-491.26,0.0001654,2]
[366185518,1750103469693,-490.0,0.0001654,2]
[366185519,1750103469703,-741.83,0.0001654,2]
[366185520,1750103469714,-490.0,0.0001654,2]
[366185521,1750103469725,-658.49,0.0001654,2]
[366185522,1750103469735,-490.0,0.0001654,2]
[366185523,1750103469745,-571.16,0.0001654,2]
[366185524,1750103469756,-490.0,0.0001654,2]
[366185525,1750103469767,-490.0,0.0001654,2]
[366185526,1750103469778,-490.0,0.0001654,2]
[366185527,1750103469789,-751.29,0.0001654,2]
[366185528,1750103469800,-490.0,0.0001654,2]
[366185529,1750103469811,-545.39,0.0001654,2]
[366185530,1750103469821,-490.0,0.0001654,2]
[366185531,1750103469834,-278.33511027,0.0001654,2]
[366185532,1750103469844,-347.957373,0.0001654,2]
[366185533,1750103469854,-784.52,0.0001654,2]
[366185534,1750103469865,-490.0,0.0001654,2]
[366185535,1750103469881,-621.17,0.0001654,2]
[366185536,1750103469891,-490.0,0.0001654,2]
[366185537,1750103469901,-490.0,0.0001654,2]
[366185538,1750103469912,-734.27,0.0001654,2]
[366185539,1750103469923,-490.0,0.0001654,2]
[366185540,1750103469933,-490.0,0.0001654,2]
[366185541,1750103469944,-150.78644392,0.0001654,2]
[366185542,1750103469954,-490.0,0.0001654,2]
[366185543,1750103469964,-716.81,0.0001654,2]
[366185544,1750103469975,-544.22,0.0001654,2]
[366185545,1750103469985,-576.01,0.0001654,2]
[366185546,1750103469995,-540.93,0.0001654,2]
[366185547,1750103470006,-710.17,0.0001654,2]
[366185548,1750103470016,-490.0,0.0001654,2]
[366185549,1750103470026,-710.11,0.0001654,2]
[366185550,1750103470037,-510.27,0.0001654,2]
[366185551,1750103470047,-490.0,0.0001654,2]
[366185552,1750103470060,-707.52,0.0001654,2]
[366185553,1750103470070,-532.63,0.0001654,2]
[366185554,1750103470081,-490.0,0.0001654,2]
[366185555,1750103470091,-490.0,0.0001654,2]
[366185556,1750103470102,-490.0,0.0001654,2]
[366185557,1750103470112,-490.0,0.0001654,2]
[366185558,1750103470123,-490.0,0.0001654,2]
[366185559,1750103470134,-498.6,0.0001654,2]
[366185560,1750103470144,-538.36,0.0001654,2]
[366185561,1750103470154,-490.0,0.0001654,2]
[366185562,1750103470164,-628.89,0.0001654,2]
[366185563,1750103470175,-490.0,0.0001654,2]
[366185564,1750103470186,-1034.97,0.0001654,2]
[366185565,1750103470197,-490.0,0.0001654,2]
[366185566,1750103470207,-490.0,0.0001654,2]
[366185567,1750103470218,-829.2,0.0001654,2]
[366185568,1750103470228,-490.0,0.0001654,2]
[366185569,1750103470238,-490.0,0.0001654,2]
[366185570,1750103470250,-490.0,0.0001654,2]
[366185571,1750103470261,-539.97,0.0001654,2]
[366185572,1750103470271,-574.27,0.0001654,2]
[366185573,1750103470284,-569.57,0.0001654,2]
[366185574,1750103470294,-490.0,0.0001654,2]
[366185575,1750103470305,-553.43,0.0001654,2]
[366185576,1750103470315,-672.01,0.0001654,2]
[366185577,1750103470325,-628.21920679,0.0001654,2]
[366185578,1750103470335,-490.0,0.0001654,2]
[366185579,1750103470346,-490.0,0.0001654,2]
[366185580,1750103470356,-623.25,0.0001654,2]
[366185581,1750103470366,-913.55,0.0001654,2]
[366185582,1750103470376,-703.94,0.0001654,2]
[366185583,1750103470387,-490.0,0.0001654,2]
[366185584,1750103470397,-586.55521849,0.0001654,2]
[366185585,1750103470408,-561.27,0.0001654,2]
[366185586,1750103470420,-686.4,0.0001654,2]
[366185587,1750103470433,-490.0,0.0001654,2]
[366185588,1750103470444,-490.0,0.0001654,2]
[366185589,1750103470455,-490.0,0.0001654,2]
[366185590,1750103470467,-490.0,0.0001654,2]
[366185591,1750103470477,-759.82,0.0001654,2]
[366185592,1750103470487,-490.0,0.0001654,2]
[366185593,1750103470499,-490.0,0.0001654,2]
[366185594,1750103470510,-490.0,0.0001654,2]
[366185595,1750103470520,-707.71,0.0001654,2]
[366185596,1750103470530,-613.07,0.0001654,2]
[366185597,1750103470540,-490.0,0.0001654,2]
[366185598,1750103470551,-2019.56,0.0001654,2]
[366185599,1750103470563,-1159.14,0.0001654,2]
[366185600,1750103470573,-490.0,0.0001654,2]
[366185601,1750103470584,-490.0,0.0001654,2]
[366185602,1750103470594,-894.11,0.0001654,2]
[366185603,1750103470604,-568.44,0.0001654,2]
[366185604,1750103470615,-550.79,0.0001654,2]
[366185605,1750103470626,-1149.38,0.0001654,2]
[366185606,1750103470636,-857.33,0.0001654,2]
[366185607,1750103470646,-897.06,0.0001654,2]
[366185608,1750103470656,-673.48,0.0001654,2]
[366185609,1750103470666,-490.0,0.0001654,2]
[366185610,1750103470676,-685.33,0.0001654,2]
[366185611,1750103470687,-1788.95,0.0001654,2]
[366185612,1750103470696,-790.75,0.0001654,2]
[366185613,1750103470706,-490.0,0.0001654,2]
[366185614,1750103470716,-722.13,0.0001654,2]
[366185615,1750103470726,-490.0,0.0001654,2]
[366185616,1750103470737,-884.72,0.0001654,2]
[366185617,1750103470747,-510.57,0.0001654,2]
[366185618,1750103470758,-912.78,0.0001654,2]
[366185619,1750103470768,-827.71,0.0001654,2]
[366185620,1750103470779,-530.44,0.0001654,2]
[366185621,1750103470790,-759.58,0.0001654,2]
[366185622,1750103470801,-490.0,0.0001654,2]
[366185623,1750103470812,-490.0,0.0001654,2]
[366185624,1750103470822,-490.0,0.0001654,2]
[366185625,1750103470832,-534.28,0.0001654,2]
[366185626,1750103470843,-490.0,0.0001654,2]
[366185627,1750103470853,-982.71,0.0001654,2]
[366185628,1750103470863,-490.0,0.0001654,2]
[366185629,1750103470873,-558.74,0.0001654,2]
[366185630,1750103470882,-490.0,0.0001654,2]
[366185631,1750103470892,-575.86,0.0001654,2]
[366185632,1750103470902,-490.0,0.0001654,2]
[366185633,1750103470912,-490.0,0.0001654,2]
[366185634,1750103470922,-1417.99,0.0001654,2]
[366185635,1750103470932,-490.0,0.0001654,2]
[366185636,1750103470942,-3739.17,0.0001654,2]
[366185637,1750103470953,-490.0,0.0001654,2]
[366185638,1750103470963,-490.0,0.0001654,2]
[366185639,1750103470974,-494.03,0.0001654,2]
[366185640,1750103470984,-642.5,0.0001654,2]
[366185641,1750103470993,-490.0,0.0001654,2]
[366185642,1750103471005,-588.12,0.0001654,2]